fUST/lending_fUST_20250227
["ID","MTS","AMOUNT","RATE_DAILY","PERIOD"]
[354736192,1740653461398,-1019.95,0.00050684,120]
[354736193,1740653461407,-500.0,0.00050684,120]
[354736194,1740653461416,-7177.14,0.00050684,120]
[354736195,1740653461425,-548.04,0.00050684,120]
[354736196,1740653461434,-500.0,0.00050684,120]
[354736197,1740653461443,-500.0,0.00050684,120]
[354736198,1740653461453,-1233.5,0.00050684,120]
[354736199,1740653461463,-500.0,0.00050684,120]
[354736200,1740653461472,-500.0,0.00050684,30]
[354736201,1740653461481,-500.0,0.00050684,120]
[354736202,1740653461490,-500.0,0.00050684,120]
[354736203,1740653461500,-532.52,0.00050684,120]
[354736204,1740653461509,-3892.54,0.00050684,120]
[354736205,1740653461520,-500.0,0.00050684,120]
[354736206,1740653461529,-500.0,0.00050684,120]
[354736207,1740653461539,-500.0,0.00050684,120]
[354736208,1740653461548,-500.0,0.00050684,120]
[354736209,1740653461558,-500.0,0.00050684,120]
[354736210,1740653461569,-500.0,0.00050684,120]
[354736211,1740653461578,-500.0,0.00050684,120]
[354736212,1740653461587,-500.0,0.00050684,120]
[354736213,1740653461597,-1271.42,0.00050684,120]
[354736214,1740653461606,-500.0,0.00050684,120]
[354736215,1740653461616,-500.0,0.00050684,120]
[354736216,1740653461626,-500.0,0.00050684,120]
[354736217,1740653461635,-500.0,0.00050684,120]
[354736218,1740653461644,-500.0,0.00050684,120]
[354736219,1740653461653,-500.0,0.00050684,120]
[354736220,1740653461662,-500.0,0.00050684,120]
[354736221,1740653461671,-1847.83,0.00050684,120]
[354736222,1740653461681,-500.0,0.00050684,120]
[354736223,1740653461690,-500.0,0.00050684,120]
[354736224,1740653461699,-1066.63,0.00050684,120]
[354736225,1740653461708,-500.0,0.00050684,120]
[354736226,1740653461718,-500.0,0.00050684,120]
[354736227,1740653461727,-500.0,0.00050684,120]
[354736228,1740653461736,-158.823994,0.00050684,120]
[354736229,1740653461744,-352.10716345,0.00050684,120]
[354736232,1740654014746,322.0,0.00025,10]
[354736233,1740654447422,215.85310535,0.00024,30]
[354736234,1740654447447,178.0,0.00024,30]
[354736235,1740654447475,106.14689465,0.00024,30]
[354736236,1740654447803,500.0,0.00024,30]
[354736237,1740654448141,500.0,0.00024,30]
[354736238,1740654448476,668.89479103,0.00024,30]
[354736287,1740654635410,-500.0,0.00028204,10]
[354736289,1740654635420,-500.0,0.00028204,10]
[354736291,1740654635429,-500.0,0.00028204,10]
[354736293,1740654635440,-500.0,0.00028204,10]
[354736295,1740654635449,-500.0,0.00028204,10]
[354736297,1740654635458,-614.176914,0.00032877,2]
[354736299,1740654635467,-614.176914,0.00036008,2]
[354736301,1740654635477,-366.47462352,0.000362,98]
[354736303,1740654635486,-614.176914,0.00039139,2]
[354736306,1740654635495,-614.176914,0.0004227,2]
[354736308,1740654635504,-366.47462349,0.00042378,120]
[354736311,1740654635514,-614.176914,0.00045401,2]
[354736314,1740654635523,-614.176914,0.00048532,2]
[354736317,1740654635533,-831.0,0.00049,120]
[354736321,1740654635542,-500.0,0.00049315,120]
[354736323,1740654635551,-455.88,0.00049315,120]
[354736325,1740654635560,-500.0,0.00049315,120]
[354736327,1740654635573,-500.0,0.00049315,120]
[354736329,1740654635582,-500.0,0.00049315,120]
[354736331,1740654635591,-500.0,0.00049315,120]
[354736334,1740654635601,-500.0,0.00049315,120]
[354736335,1740654635612,-500.0,0.00049315,2]
[354736338,1740654635622,-500.0,0.00049315,120]
[354736340,1740654635631,-500.0,0.00049315,120]
[354736341,1740654635642,-639.91,0.00049315,120]
[354736343,1740654635651,-500.0,0.00049315,120]
[354736345,1740654635660,-500.0,0.00049315,120]
[354736347,1740654635670,-500.0,0.00049315,120]
[354736349,1740654635679,-446.3,0.00049315,120]
[354736351,1740654635689,-500.0,0.00049315,120]
[354736353,1740654635698,-500.0,0.00049315,120]
[354736355,1740654635707,-275.26,0.00049315,120]
[354736357,1740654635716,-500.0,0.00049315,120]
[354736359,1740654635725,-500.0,0.00049315,120]
[354736361,1740654635735,-500.0,0.00049315,120]
[354736363,1740654635745,-583.06,0.00049315,120]
[354736365,1740654635754,-500.0,0.00049315,120]
[354736367,1740654635763,-500.0,0.00049315,120]
[354736369,1740654635773,-500.0,0.00049315,120]
[354736371,1740654635783,-500.0,0.00049315,120]
[354736373,1740654635792,-500.0,0.00049315,120]
[354736375,1740654635802,-187.2,0.00049315,120]
[354736377,1740654635811,-500.0,0.00049315,120]
[354736379,1740654635821,-500.0,0.00049315,120]
[354736381,1740654635830,-500.0,0.00049315,120]
[354736383,1740654635839,-500.0,0.00049315,120]
[354736385,1740654635848,-500.0,0.00049315,120]
[354736387,1740654635857,-500.0,0.00049315,120]
[354736389,1740654635866,-390.4,0.00049315,120]
[354736391,1740654635876,-500.0,0.00049315,120]
[354736393,1740654635885,-500.0,0.00049315,120]
[354736395,1740654635895,-354.59923221,0.00049315,120]
[354737098,1740654643132,-867.4147535,0.000493,2]
[354737439,1740654646327,-139132.5852465,0.000493,2]
[354737441,1740654646337,-145.40076779,0.00049315,120]
[354737443,1740654646346,-500.0,0.00049315,120]
[354737445,1740654646355,-500.0,0.00049315,120]
[354737447,1740654646365,-500.0,0.00049315,120]
[354737449,1740654646375,-500.0,0.00049315,120]
[354737451,1740654646385,-500.0,0.00049315,120]
[354737453,1740654646394,-299.92,0.00049315,120]
[354737455,1740654646403,-500.0,0.00049315,120]
[354737457,1740654646412,-500.0,0.00049315,120]
[354737459,1740654646421,-607.91,0.00049315,120]
[354737461,1740654646430,-500.0,0.00049315,120]
[354737463,1740654646439,-500.0,0.00049315,120]
[354737465,1740654646448,-500.0,0.00049315,120]
[354737467,1740654646458,-500.0,0.00049315,120]
[354737469,1740654646467,-500.0,0.00049315,120]
[354737471,1740654646476,-500.0,0.00049315,120]
[354737473,1740654646486,-500.0,0.00049315,120]
[354737475,1740654646495,-500.0,0.00049315,120]
[354737477,1740654646505,-266.24,0.00049315,120]
[354737479,1740654646514,-500.0,0.00049315,120]
[354737481,1740654646524,-500.0,0.00049315,120]
[354737483,1740654646534,-500.0,0.00049315,120]
[354737485,1740654646544,-500.0,0.00049315,120]
[354737487,1740654646553,-500.0,0.00049315,120]
[354737489,1740654646564,-500.0,0.00049315,120]
[354737492,1740654646576,-500.0,0.00049315,120]
[354737493,1740654646586,-500.0,0.00049315,120]
[354737495,1740654646595,-500.0,0.00049315,120]
[354737497,1740654646605,-500.0,0.00049315,120]
[354737499,1740654646614,-500.0,0.00049315,120]
[354737501,1740654646623,-500.0,0.00049315,120]
[354737503,1740654646633,-5497.98,0.00049315,120]
[354737505,1740654646642,-1851.9,0.00049315,120]
[354737507,1740654646651,-765.02,0.00049315,120]
[354737509,1740654646661,-500.0,0.00049315,120]
[354737511,1740654646670,-500.0,0.00049315,120]
[354737513,1740654646680,-566.28,0.00049315,120]
[354737515,1740654646690,-500.0,0.00049315,120]
[354737517,1740654646699,-925.13,0.00049315,120]
[354737519,1740654646708,-500.0,0.00049315,120]
[354737521,1740654646717,-30068.71,0.00049315,7]
[354737523,1740654646726,-500.0,0.00049315,120]
[354737525,1740654646735,-2919.4,0.00049315,120]
[354737527,1740654646745,-500.0,0.00049315,120]
[354737529,1740654646755,-500.0,0.00049315,120]
[354737531,1740654646764,-547.76,0.00049315,30]
[354737533,1740654646773,-953.57,0.00049315,120]
[354737535,1740654646784,-500.0,0.00049315,120]
[354737537,1740654646793,-500.0,0.00049315,120]
[354737539,1740654646803,-500.0,0.00049315,120]
[354737541,1740654646813,-500.0,0.00049315,120]
[354737543,1740654646822,-192.81,0.00049315,120]
[354737545,1740654646832,-500.0,0.00049315,120]
[354737547,1740654646841,-500.0,0.00049315,120]
[354737549,1740654646850,-1385.88,0.00049315,120]
[354737551,1740654646860,-500.0,0.00049315,120]
[354737553,1740654646869,-246.6,0.00049315,120]
[354737555,1740654646879,-500.0,0.00049315,120]
[354737557,1740654646889,-799.98,0.00049315,120]
[354737559,1740654646898,-500.0,0.00049315,120]
[354737561,1740654646907,-500.0,0.00049315,120]
[354737563,1740654646916,-500.0,0.00049315,120]
[354737565,1740654646926,-500.0,0.00049315,120]
[354737567,1740654646935,-500.0,0.00049315,120]
[354737569,1740654646944,-500.0,0.00049315,120]
[354737571,1740654646953,-581.4,0.00049315,120]
[354737574,1740654646963,-298.27609347,0.00049315,120]
[354737576,1740654646973,-500.0,0.00049315,120]
[354737578,1740654646983,-1225.24,0.00049315,120]
[354737580,1740654646992,-500.0,0.00049315,120]
[354737582,1740654647002,-609.78,0.00049315,120]
[354737584,1740654647011,-500.0,0.00049315,120]
[354737586,1740654647020,-500.0,0.00049315,120]
[354737588,1740654647031,-378.569983,0.00049315,120]
[354737590,1740654647040,-500.0,0.00049315,120]
[354737592,1740654647049,-500.0,0.00049315,120]
[354737594,1740654647058,-546.36,0.00049315,120]
[354737596,1740654647067,-500.0,0.00049315,120]
[354737598,1740654647078,-500.0,0.00049315,120]
[354737600,1740654647087,-500.0,0.00049315,120]
[354737602,1740654647096,-500.0,0.00049315,120]
[354737604,1740654647105,-500.0,0.00049315,120]
[354737606,1740654647115,-664.57,0.00049315,120]
[354737608,1740654647124,-5162.48,0.00049315,6]
[354737610,1740654647133,-500.0,0.00049315,120]
[354737612,1740654647142,-500.0,0.00049315,120]
[354737614,1740654647151,-500.0,0.00049315,120]
[354737616,1740654647160,-1729.23,0.00049315,120]
[354737618,1740654647169,-500.0,0.00049315,120]
[354737620,1740654647178,-737.83,0.00049315,120]
[354737622,1740654647187,-500.0,0.00049315,120]
[354737624,1740654647197,-500.0,0.00049315,120]
[354737626,1740654647206,-6776.95,0.00049315,120]
[354737628,1740654647215,-603.84,0.00049315,120]
[354737630,1740654647224,-663.24,0.00049315,120]
[354737632,1740654647233,-3855.32,0.00049315,120]
[354737634,1740654647243,-500.0,0.00049315,120]
[354737636,1740654647252,-1378.89,0.00049315,120]
[354737638,1740654647262,-2354.82,0.00049315,120]
[354737640,1740654647271,-500.0,0.00049315,120]
[354737642,1740654647281,-1835.77,0.00049315,120]
[354737644,1740654647290,-500.0,0.00049315,120]
[354737646,1740654647299,-500.0,0.00049315,120]
[354737647,1740654647309,-509.94,0.00049315,2]
[354737650,1740654647318,-559.97,0.00049315,120]
[354737652,1740654647327,-500.0,0.00049589,120]
[354737653,1740654647336,-500.0,0.00049589,120]
[354737655,1740654647348,-317.91,0.00049589,120]
[354737658,1740654647358,-293.18,0.00049589,120]
[354737660,1740654647367,-500.0,0.00049589,120]
[354737662,1740654647376,-278.82,0.00049589,120]
[354737664,1740654647386,-639.91,0.00049589,120]
[354737666,1740654647395,-500.0,0.00049589,120]
[354737667,1740654647404,-500.0,0.00049589,120]
[354737669,1740654647414,-500.0,0.00049589,120]
[354737671,1740654647424,-500.0,0.00049589,120]
[354737673,1740654647433,-500.0,0.00049589,120]
[354737675,1740654647442,-583.06,0.00049589,120]
[354737677,1740654647451,-500.0,0.00049589,120]
[354737679,1740654647460,-500.0,0.00049589,120]
[354737681,1740654647469,-500.0,0.00049589,120]
[354737683,1740654647479,-500.0,0.00049589,120]
[354737685,1740654647489,-500.0,0.00049589,120]
[354737687,1740654647498,-460.6,0.00049589,120]
[354737689,1740654647508,-598.84,0.00049589,120]
[354737691,1740654647517,-500.0,0.00049589,120]
[354737693,1740654647526,-500.0,0.00049589,120]
[354737695,1740654647536,-500.0,0.00049589,120]
[354737697,1740654647546,-500.0,0.00049589,120]
[354737699,1740654647555,-182.92,0.00049589,120]
[354737701,1740654647568,-157.24,0.00049589,120]
[354737703,1740654647579,-500.0,0.00049589,120]
[354737705,1740654647588,-500.0,0.00049589,120]
[354737707,1740654647597,-433.08,0.00049589,120]
[354737709,1740654647607,-500.0,0.00049589,120]
[354737711,1740654647618,-500.0,0.00049589,120]
[354737713,1740654647627,-259.24,0.00049589,120]
[354737715,1740654647637,-500.0,0.00049589,120]
[354737717,1740654647647,-607.91,0.00049589,120]
[354737719,1740654647656,-500.0,0.00049589,120]
[354737721,1740654647665,-163.28,0.00049589,120]
[354737723,1740654647675,-574.65767045,0.00049589,120]
[354737725,1740654647684,-182.2,0.00049589,120]
[354737727,1740654647694,-500.0,0.00049589,120]
[354737730,1740654647703,-500.0,0.00049589,120]
[354737731,1740654647712,-500.0,0.00049589,120]
[354737733,1740654647722,-500.0,0.00049589,120]
[354737735,1740654647731,-500.0,0.00049589,120]
[354737737,1740654647740,-500.0,0.00049589,120]
[354737739,1740654647749,-555.27,0.00049589,120]
[354737741,1740654647758,-500.0,0.00049589,120]
[354737743,1740654647767,-500.0,0.00049589,120]
[354737745,1740654647776,-184.22,0.00049589,120]
[354737747,1740654647787,-5497.98,0.00049589,120]
[354737749,1740654647796,-1851.9,0.00049589,120]
[354737751,1740654647806,-765.02,0.00049589,120]
[354737753,1740654647815,-565.72,0.00049589,120]
[354737755,1740654647824,-500.0,0.00049589,120]
[354737757,1740654647834,-500.0,0.00049589,120]
[354737759,1740654647843,-500.0,0.00049589,120]
[354737761,1740654647852,-925.13,0.00049589,120]
[354737763,1740654647862,-30068.71,0.00049589,7]
[354737765,1740654647871,-500.0,0.00049589,120]
[354737767,1740654647880,-2919.4,0.00049589,120]
[354737769,1740654647890,-500.0,0.00049589,120]
[354737771,1740654647899,-500.0,0.00049589,120]
[354737773,1740654647909,-953.57,0.00049589,120]
[354737775,1740654647918,-500.0,0.00049589,120]
[354737777,1740654647927,-500.0,0.00049589,120]
[354737779,1740654647936,-221.82,0.00049589,120]
[354737781,1740654647945,-500.0,0.00049589,120]
[354737784,1740654647955,-500.0,0.00049589,120]
[354737797,1740654648093,-500.0,0.00049589,120]
[354737799,1740654648104,-1385.88,0.00049589,120]
[354737801,1740654648113,-500.0,0.00049589,120]
[354737803,1740654648122,-500.0,0.00049589,120]
[354737805,1740654648132,-799.98,0.00049589,120]
[354737807,1740654648141,-500.0,0.00049589,120]
[354737809,1740654648150,-500.0,0.00049589,120]
[354737811,1740654648163,-500.0,0.00049589,120]
[354737813,1740654648172,-500.0,0.00049589,120]
[354737815,1740654648181,-500.0,0.00049589,120]
[354737817,1740654648190,-581.4,0.00049589,120]
[354737819,1740654648200,-500.0,0.00049589,120]
[354737821,1740654648209,-1225.24,0.00049589,120]
[354737823,1740654648218,-430.44,0.00049589,120]
[354737825,1740654648228,-609.78,0.00049589,120]
[354737827,1740654648237,-500.0,0.00049589,120]
[354737829,1740654648246,-637.73,0.00049589,120]
[354737831,1740654648257,-500.0,0.00049589,120]
[354737833,1740654648266,-533.49,0.00049589,120]
[354737835,1740654648275,-647.76,0.00049589,120]
[354737838,1740654648285,-500.0,0.00049589,120]
[354737840,1740654648295,-500.0,0.00049589,120]
[354737842,1740654648305,-500.0,0.00049589,120]
[354737844,1740654648315,-500.0,0.00049589,120]
[354737846,1740654648325,-664.57,0.00049589,120]
[354737848,1740654648335,-5162.48,0.00049589,6]
[354737850,1740654648344,-500.0,0.00049589,120]
[354737852,1740654648354,-500.0,0.00049589,120]
[354737854,1740654648364,-500.0,0.00049589,120]
[354737856,1740654648374,-1729.23,0.00049589,120]
[354737858,1740654648383,-500.0,0.00049589,120]
[354737860,1740654648393,-737.83,0.00049589,120]
[354737862,1740654648401,-500.0,0.00049589,120]
[354737864,1740654648409,-500.0,0.00049589,120]
[354737866,1740654648418,-6776.95,0.00049589,120]
[354737868,1740654648426,-663.24,0.00049589,120]
[354737870,1740654648433,-3855.32,0.00049589,120]
[354737872,1740654648442,-1378.89,0.00049589,120]
[354737874,1740654648452,-2354.82,0.00049589,120]
[354737876,1740654648462,-491.08,0.00049589,120]
[354737878,1740654648471,-1835.77,0.00049589,120]
[354737880,1740654648480,-500.0,0.00049589,120]
[354737882,1740654648490,-163.92,0.00049589,120]
[354737884,1740654648499,-559.97,0.00049589,120]
[354737886,1740654648508,-165.16,0.000496,30]
[354737888,1740654648518,-628.84486164,0.00049863,120]
[354737890,1740654648527,-500.0,0.00049863,120]
[354737892,1740654648537,-499.899299,0.00049863,120]
[354737894,1740654648547,-639.91,0.00049863,120]
[354737896,1740654648555,-500.0,0.00049863,120]
[354737898,1740654648564,-342.95,0.00049863,120]
[354737899,1740654648576,-500.0,0.00049863,120]
[354737901,1740654648585,-500.0,0.00049863,120]
[354737904,1740654648598,-539.83,0.00049863,120]
[354737906,1740654648610,-583.06,0.00049863,120]
[354737908,1740654648619,-500.0,0.00049863,120]
[354737910,1740654648629,-500.0,0.00049863,120]
[354737912,1740654648639,-500.0,0.00049863,120]
[354737914,1740654648651,-500.0,0.00049863,120]
[354737916,1740654648660,-500.0,0.00049863,120]
[354737918,1740654648669,-500.0,0.00049863,120]
[354737920,1740654648679,-500.0,0.00049863,120]
[354737922,1740654648688,-500.0,0.00049863,120]
[354737924,1740654648697,-500.0,0.00049863,120]
[354737926,1740654648707,-500.0,0.00049863,120]
[354737928,1740654648716,-500.0,0.00049863,120]
[354737930,1740654648726,-500.0,0.00049863,120]
[354737932,1740654648736,-500.0,0.00049863,120]
[354737934,1740654648746,-500.0,0.00049863,120]
[354737936,1740654648755,-607.91,0.00049863,120]
[354737938,1740654648765,-254.27,0.00049863,120]
[354737941,1740654648775,-500.0,0.00049863,120]
[354737943,1740654648785,-500.0,0.00049863,120]
[354737945,1740654648795,-500.0,0.00049863,120]
[354737947,1740654648805,-500.0,0.00049863,120]
[354737949,1740654648814,-500.0,0.00049863,120]
[354737951,1740654648824,-500.0,0.00049863,120]
[354737953,1740654648833,-500.0,0.00049863,120]
[354737955,1740654648843,-500.0,0.00049863,120]
[354737957,1740654648852,-5497.98,0.00049863,120]
[354737959,1740654648862,-1851.9,0.00049863,120]
[354737961,1740654648871,-765.02,0.00049863,120]
[354737963,1740654648880,-500.0,0.00049863,120]
[354737965,1740654648891,-500.0,0.00049863,120]
[354737967,1740654648901,-310.88,0.00049863,120]
[354737969,1740654648910,-925.13,0.00049863,120]
[354737971,1740654648920,-30068.71,0.00049863,7]
[354737973,1740654648930,-184.85,0.00049863,120]
[354737975,1740654648940,-2919.4,0.00049863,120]
[354737977,1740654648950,-500.0,0.00049863,120]
[354737979,1740654648959,-500.0,0.00049863,120]
[354737981,1740654648968,-953.57,0.00049863,120]
[354737983,1740654648977,-500.0,0.00049863,120]
[354737985,1740654648986,-615.43,0.00049863,120]
[354737987,1740654648996,-500.0,0.00049863,120]
[354737989,1740654649006,-200.12378161,0.00049863,120]
[354737991,1740654649015,-500.0,0.00049863,120]
[354737993,1740654649025,-1385.88,0.00049863,120]
[354737995,1740654649035,-500.0,0.00049863,120]
[354737996,1740654649045,-500.0,0.00049863,120]
[354737998,1740654649055,-799.98,0.00049863,120]
[354738001,1740654649065,-500.0,0.00049863,120]
[354738003,1740654649075,-500.0,0.00049863,120]
[354738005,1740654649085,-500.0,0.00049863,120]
[354738007,1740654649094,-500.0,0.00049863,120]
[354738009,1740654649104,-581.4,0.00049863,120]
[354738011,1740654649115,-500.0,0.00049863,120]
[354738013,1740654649124,-1225.24,0.00049863,120]
[354738014,1740654649133,-609.78,0.00049863,120]
[354738016,1740654649143,-500.0,0.00049863,120]
[354738018,1740654649153,-500.0,0.00049863,120]
[354738020,1740654649163,-500.0,0.00049863,120]
[354738022,1740654649172,-500.0,0.00049863,120]
[354738024,1740654649182,-500.0,0.00049863,120]
[354738026,1740654649191,-664.57,0.00049863,120]
[354738028,1740654649201,-5162.48,0.00049863,6]
[354738030,1740654649211,-500.0,0.00049863,120]
[354738032,1740654649221,-500.0,0.00049863,120]
[354738034,1740654649230,-500.0,0.00049863,120]
[354738036,1740654649240,-1729.23,0.00049863,120]
[354738038,1740654649249,-500.0,0.00049863,120]
[354738040,1740654649259,-737.83,0.00049863,120]
[354738042,1740654649269,-500.0,0.00049863,120]
[354738044,1740654649278,-500.0,0.00049863,120]
[354738045,1740654649289,-6776.95,0.00049863,120]
[354738046,1740654649298,-663.24,0.00049863,120]
[354738047,1740654649308,-3855.32,0.00049863,120]
[354738048,1740654649318,-1378.89,0.00049863,120]
[354738049,1740654649328,-2354.82,0.00049863,120]
[354738050,1740654649341,-1835.77,0.00049863,120]
[354738051,1740654649351,-500.0,0.00049863,120]
[354738053,1740654649360,-559.97,0.00049863,120]
[354738055,1740654649369,-514.04,0.00050136,120]
[354738056,1740654649378,-639.91,0.00050136,120]
[354738058,1740654649388,-500.0,0.00050136,120]
[354738059,1740654649397,-500.0,0.00050136,120]
[354738060,1740654649406,-500.0,0.00050136,120]
[354738061,1740654649416,-583.06,0.00050136,120]
[354738062,1740654649425,-500.0,0.00050136,120]
[354738063,1740654649435,-500.0,0.00050136,120]
[354738064,1740654649444,-500.0,0.00050136,120]
[354738065,1740654649453,-500.0,0.00050136,120]
[354738066,1740654649463,-500.0,0.00050136,120]
[354738067,1740654649472,-353.04,0.00050136,120]
[354738068,1740654649482,-500.0,0.00050136,120]
[354738069,1740654649491,-500.0,0.00050136,120]
[354738071,1740654649501,-388.18,0.00050136,120]
[354738073,1740654649511,-500.0,0.00050136,120]
[354738075,1740654649520,-500.0,0.00050136,120]
[354738077,1740654649530,-500.0,0.00050136,120]
[354738079,1740654649542,-500.0,0.00050136,120]
[354738080,1740654649553,-500.0,0.00050136,120]
[354738082,1740654649563,-607.91,0.00050136,120]
[354738084,1740654649578,-500.0,0.00050136,120]
[354738086,1740654649588,-500.0,0.00050136,120]
[354738087,1740654649598,-500.0,0.00050136,120]
[354738088,1740654649608,-500.0,0.00050136,120]
[354738089,1740654649617,-500.0,0.00050136,120]
[354738090,1740654649627,-158.12,0.00050136,120]
[354738091,1740654649636,-171.24,0.00050136,120]
[354738092,1740654649646,-500.0,0.00050136,120]
[354738093,1740654649656,-5497.98,0.00050136,120]
[354738094,1740654649666,-1851.9,0.00050136,120]
[354738096,1740654649675,-765.02,0.00050136,120]
[354738098,1740654649684,-500.0,0.00050136,120]
[354738100,1740654649693,-500.0,0.00050136,120]
[354738102,1740654649702,-925.13,0.00050136,120]
[354738104,1740654649712,-30068.71,0.00050136,7]
[354738106,1740654649722,-2919.4,0.00050136,120]
[354738108,1740654649731,-500.0,0.00050136,120]
[354738109,1740654649740,-500.0,0.00050136,120]
[354738110,1740654649749,-953.57,0.00050136,120]
[354738111,1740654649759,-500.0,0.00050136,120]
[354738112,1740654649769,-500.0,0.00050136,120]
[354738113,1740654649778,-215.0,0.00050136,120]
[354738114,1740654649789,-1385.88,0.00050136,120]
[354738115,1740654649798,-613.17,0.00050136,120]
[354738116,1740654649807,-500.0,0.00050136,120]
[354738117,1740654649817,-799.98,0.00050136,120]
[354738118,1740654649826,-500.0,0.00050136,120]
[354738119,1740654649836,-500.0,0.00050136,120]
[354738120,1740654649845,-500.0,0.00050136,120]
[354738121,1740654649855,-500.0,0.00050136,120]
[354738122,1740654649864,-581.4,0.00050136,120]
[354738123,1740654649873,-500.0,0.00050136,120]
[354738124,1740654649883,-1225.24,0.00050136,120]
[354738125,1740654649893,-609.78,0.00050136,120]
[354738126,1740654649903,-500.0,0.00050136,120]
[354738127,1740654649912,-500.0,0.00050136,120]
[354738128,1740654649922,-500.0,0.00050136,120]
[354738129,1740654649931,-500.0,0.00050136,120]
[354738130,1740654649941,-290.68,0.00050136,120]
[354738131,1740654649950,-664.57,0.00050136,120]
[354738132,1740654649959,-5162.48,0.00050136,6]
[354738133,1740654649968,-500.0,0.00050136,120]
[354738134,1740654649978,-500.0,0.00050136,120]
[354738135,1740654649987,-500.0,0.00050136,120]
[354738136,1740654650006,-500.0,0.00050136,120]
[354738137,1740654650016,-1729.23,0.00050136,120]
[354738138,1740654650026,-737.83,0.00050136,120]
[354738139,1740654650039,-500.0,0.00050136,120]
[354738140,1740654650048,-500.0,0.00050136,120]
[354738141,1740654650058,-6776.95,0.00050136,120]
[354738142,1740654650068,-663.24,0.00050136,120]
[354738143,1740654650078,-3855.32,0.00050136,120]
[354738144,1740654650088,-1378.89,0.00050136,120]
[354738145,1740654650097,-2354.82,0.00050136,120]
[354738146,1740654650108,-1835.77,0.00050136,120]
[354738147,1740654650118,-500.0,0.00050136,120]
[354738148,1740654650127,-559.97,0.00050136,120]
[354738149,1740654650139,-160.6788572,0.00050207,4]
[354738150,1740654650149,-639.91,0.0005041,120]
[354738151,1740654650159,-500.0,0.0005041,120]
[354738152,1740654650168,-500.0,0.0005041,120]
[354738153,1740654650178,-500.0,0.0005041,120]
[354738154,1740654650187,-583.06,0.0005041,120]
[354738155,1740654650197,-500.0,0.0005041,120]
[354738156,1740654650206,-419.70386471,0.0005041,120]
[354738157,1740654650215,-500.0,0.0005041,120]
[354738158,1740654650225,-500.0,0.0005041,120]
[354738159,1740654650234,-500.0,0.0005041,120]
[354738160,1740654650244,-500.0,0.0005041,120]
[354738161,1740654650254,-500.0,0.0005041,120]
[354738162,1740654650263,-500.0,0.0005041,120]
[354738163,1740654650273,-500.0,0.0005041,120]
[354738164,1740654650283,-294.73,0.0005041,120]
[354738165,1740654650294,-500.0,0.0005041,120]
[354738166,1740654650303,-350.16,0.0005041,120]
[354738167,1740654650313,-607.91,0.0005041,120]